{"text_format":"1","workbook":"xlsx","n_sheets":11,"sheets":["Dane podstawowe","Uczniowie","Uczniowie I","Uczniowie II","Uczniowie III","Uczniowie IV","Sukcesy","Wnioski","Wnioski II","Nobel","LekcjeZrealizowane"],"not_rendered":{"charts":0,"images":0,"macros":1,"external_links":0,"defined_names":1,"comments":1,"pivot_tables":0},"unopened":[],"bounds":{"document_bytes":16777216,"sheet_cells":100000,"rows_first":2000,"rows_last":500,"rows_between":2000,"halvings":0,"cell_chars":16384,"cell_head_chars":4096},"cells_cut":0,"cells_raw":0,"read":"whole","date_system":"1900"}

{"sheet":"Dane podstawowe","index":0,"n_rows":102,"n_cols":11,"rows_kept":102,"cut":false,"hidden":false,"merged":[[32,4,32,5],[26,4,26,5],[27,4,27,5],[28,4,28,5],[29,4,29,5],[30,4,30,5],[31,4,31,5],[25,4,25,5],[5,3,5,7],[7,0,7,1],[15,3,15,7],[16,4,16,5],[17,4,17,5],[18,4,18,5],[19,4,19,5],[20,4,20,5],[21,4,21,5],[23,4,23,5],[24,4,24,5]]}
["Klasa:",null,"Kod klasy:",{"$f":"IF(B1<>\"\",2025-LEFT(B1,1)&RIGHT(B1,1),\"\")","v":""}]
["Wychowawca:",{"$f":"IF(ISERROR(VLOOKUP(B1,A73:B103,2)),\"\", VLOOKUP(B1,A73:B103,2))","v":""},"Adres e-mail wychowawcy"]
["Stan klasy:"]
["Frekwencja:",null,"Podczas pracy z dokumentem makra muszą być włączone!"]
["Godziny nieusprawiedliwione:"]
["Spóźnienia:",null,null,"WYCIECZKI - ZIELONE SZKOŁY"]
[null,null,null,"Miejscowość","województwo","data","liczba uczestników","liczba dni"]
["Kontakty z rodzicami (ile)"]
["Zebrania:"]
["Konsultacje:"]
["Spotaknia indywidualne:"]
[]
[null,null,null,null,null,null,null,null,null,"jednodniowe",{"$f":"COUNTIF(H8:H13,1)","v":0}]
[null,null,null,null,null,null,null,null,null,"kilkudniowe",{"$f":"COUNTIF(H8:H13,\">1\")","v":0}]
[]
[null,null,null,"KINO - MUZEUM - KONCERT - LODOWISKO - INNE WYJŚCIA"]
[null,null,null,"Instytucja","Cel",null,"liczba uczestników","data"]
[]
[]
[]
[]
[]
[]
[]
[]
[null,null,null,null,null,null,null,null,null,"wyjścia",{"$f":"COUNTA(D18:D26)","v":0}]
[]
[]
[]
[]
[]
[]
[]
[]
[]
[]
[null,null,null,"dolnośląskie"]
[null,null,null,"kujawsko-pomorskie"]
[null,null,null,"lubelskie"]
[null,null,null,"lubuskie"]
[null,null,null,"łódzkie"]
[null,null,null,"małopolskie"]
[null,null,null,"mazowieckie"]
[null,null,null,"opolskie"]
[null,null,null,"podkarpackie"]
[null,null,null,"podlaskie"]
[null,null,null,"pomorskie"]
[null,null,null,"śląskie"]
[null,null,null,"świętokrzyskie"]
[null,null,null,"warmińsko-mazurskie"]
[null,null,null,"wielkopolskie"]
[null,null,null,"zachodniopomorskie"]
[]
[]
[]
[]
[]
[]
[]
[]
[]
[]
[]
[]
[]
[]
[]
[]
[]
[]
[]
[]
["1a","Bartczak Celina",1]
["1b","Wilewicz Marzena",2]
["1c","Stepek Katarzyna",3]
["1d","Besser Anna",4]
["2a","Partyka Agnieszka",5]
["2b","Kihan Bożena",6]
["2c","Szymańska Sandra",7]
["2d","Halamus Agnieszka",8]
["3a","Bobrowska Jolanta",9]
["3b","Szczytkowska Anna",10]
["3c","Misiak Urszula",11]
["3d","Giedzińska Małgorzata",12]
["3f","Wodowska Katarzyna",13]
["4a","Tetkowska Katarzyna",1]
["4b","Łuczak Szymon",2]
["4c","Wójcik Aleksandra",3]
["4d","Chmolewska Edyta",4]
["5a","Pijanowska Katarzyna",5]
["5b","Węgłowska Anna",6]
["5c","Felkiel Anna",7]
["6a","Kołacz Edyta",8]
["6b","Pacyna Katarzyna",9]
["6c","Padewska-Berger Anna",10]
["7a","Skrobot Małgorzata",11]
["7b","Wieczorkowska Marta",12]
["7c","Kobuszewski Janusz",13]
["8a","Rząsa-Piątek Joanna",14]
["8b","Czarnoleska Daria",15]
["8c","Wojtuś Barbara",16]
["8d","Śnihur Laura",17]

{"sheet":"Uczniowie","index":1,"n_rows":27,"n_cols":11,"rows_kept":27,"cut":false,"hidden":false,"merged":[[0,0,0,2],[0,4,0,6],[0,8,0,10]]}
["Uczniowie wyróżniający się w nauce",null,null,null,"Uczniowie z problemami w nauce",null,null,null,"Uczniowie z problemami w zachowaniu"]
["Lp.","Nazwisko i imię","Osiągnięcia",null,"Lp.","Nazwisko i imię","Trudności",null,"Lp.","Nazwisko i imię","Trudności"]
[1,null,null,null,1,null,null,null,1]
[{"$f":"IF(B4<>\"\",A3+1,\"\")","v":""},null,null,null,{"$f":"IF(F4<>\"\",E3+1,\"\")","v":""},null,null,null,{"$f":"IF(J4<>\"\",I3+1,\"\")","v":""}]
[{"$f":"IF(B5<>\"\",A4+1,\"\")","v":""},null,null,null,"",null,null,null,""]
[{"$f":"IF(B6<>\"\",A5+1,\"\")","v":""},null,null,null,"",null,null,null,""]
[{"$f":"IF(B7<>\"\",A6+1,\"\")","v":""},null,null,null,"",null,null,null,""]
[{"$f":"IF(B8<>\"\",A7+1,\"\")","v":""},null,null,null,"",null,null,null,""]
["",null,null,null,"",null,null,null,""]
["",null,null,null,"",null,null,null,""]
["",null,null,null,"",null,null,null,""]
["",null,null,null,"",null,null,null,""]
["",null,null,null,"",null,null,null,""]
["",null,null,null,"",null,null,null,""]
["",null,null,null,"",null,null,null,""]
["",null,null,null,"",null,null,null,""]
["",null,null,null,"",null,null,null,""]
["",null,null,null,"",null,null,null,""]
["",null,null,null,"",null,null,null,""]
["",null,null,null,"",null,null,null,""]
["",null,null,null,"",null,null,null,""]
["",null,null,null,"",null,null,null,""]
["",null,null,null,"",null,null,null,""]
["",null,null,null,"",null,null,null,""]
["",null,null,null,"",null,null,null,""]
["",null,null,null,"",null,null,null,""]
["",null,null,null,"",null,null,null,""]

{"sheet":"Uczniowie I","index":2,"n_rows":10,"n_cols":6,"rows_kept":10,"cut":false,"hidden":false,"merged":[[0,0,0,4]]}
["Uczniowie nieklasyfikowani i niepromowani"]
["Lp.","Nazwisko i imię","nieklasyfikowany/\nniepromowany","Przyczyny","Sposoby udzielanej pomocy"]
[1,null,null,null,null,"nieklasyfikowany"]
[{"$f":"IF(B4<>\"\",A3+1,\"\")","v":""},null,null,null,null,"niepromowany"]
[""]
[""]
[""]
[""]
[""]
[""]

{"sheet":"Uczniowie II","index":3,"n_rows":26,"n_cols":9,"rows_kept":26,"cut":false,"hidden":false,"merged":[[0,0,0,5]]}
["Uczniowie, którym świadczona jest pomoc psychologiczno - pedagogiczna\n(posiadający opinię lub orzeczenie oraz wskazani przez wychowawcę lub innego nauczyciela, rodzica itp.\n\nUwzględnić również uczniów, którzy korzystają TYLKO Z FORM WSPARCIA PODCZAS ZAJĘĆ LEKCYJNYCH I PRACY W DOMU)",null,null,null,null,null,null,null,"TAK"]
["Lp.","Nazwisko i imię","Podstawa udzielania wsparcia\n(opinia ppp, wniosek nauczyciela, rodzica itp.)","Data rozpoczęcia udzielania pomocy\n(np. data wpływu opinii, wniosku)","Formy wsparcia","Uzyskane efekty",null,null,"NIE"]
[1]
[{"$f":"IF(B4<>\"\",A3+1,\"\")","v":""}]
[{"$f":"IF(B5<>\"\",A4+1,\"\")","v":""}]
[""]
[""]
[""]
[""]
[""]
[""]
[""]
[""]
[""]
[""]
[""]
[""]
[""]
[""]
[""]
[""]
[""]
[""]
[""]
[""]
[""]

{"sheet":"Uczniowie III","index":4,"n_rows":20,"n_cols":4,"rows_kept":20,"cut":false,"hidden":false,"merged":[[0,0,0,3]]}
["Uczniowie szczególnej troski (zdrowotne, rodzinne, emocjonalne, finansowe i inne )"]
["Lp.","Nazwisko i imię","Trudności","Sposoby wsparcia"]
[1]
[{"$f":"IF(B4<>\"\",A3+1,\"\")","v":""}]
[""]
[""]
[""]
[""]
[""]
[""]
[""]
[""]
[""]
[""]
[""]
[""]
[""]
[""]
[""]
[""]

{"sheet":"Uczniowie IV","index":5,"n_rows":28,"n_cols":6,"rows_kept":28,"cut":false,"hidden":false,"merged":[[0,0,0,2]]}
["Uczniowie, którzy otrzymali wyróżnienie WZOROWY UCZEŃ",null,null,null,null,"Wzorowy uczeń"]
["Lp.","Nazwisko i imię","Rodzaj wyróżnienia (proszę wybrać z listy",null,null,"Wspaniałe wyniki w nauce"]
[1,null,null,null,null,"Wzorowe zachowanie"]
[{"$f":"IF(B4<>\"\",A3+1,\"\")","v":""}]
[{"$f":"IF(B5<>\"\",A4+1,\"\")","v":""}]
[{"$f":"IF(B6<>\"\",A5+1,\"\")","v":""}]
[""]
[""]
[""]
[""]
[""]
[""]
[""]
[""]
[""]
[""]
[""]
[""]
[""]
[""]
[""]
[""]
[""]
[""]
[""]
[""]
[""]
[""]

{"sheet":"Sukcesy","index":6,"n_rows":20,"n_cols":3,"rows_kept":20,"cut":false,"hidden":false,"merged":[[0,0,0,2]]}
["Zaangażowanie klasy w życie szkolne i pozaszkolne\nw którym udział wzięło co najmniej 50% uczniów klasy\nkonkursy - zawody sportowe - reprezentowanie szkoły - występy - udział w programach"]
["Lp.","Data","Wydarzenie"]
[1]
[{"$f":"IF(B4<>\"\",A3+1,\"\")","v":""}]
[""]
[""]
[""]
[""]
[""]
[""]
[""]
[""]
[""]
[""]
[""]
[""]
[""]
[""]
[""]
[""]

{"sheet":"Wnioski","index":7,"n_rows":3,"n_cols":1,"rows_kept":3,"cut":false,"hidden":false,"merged":[]}
["WNIOSKI:\n\nMocne strony\nklasy"]
["WNIOSKI:\n\nSłabe strony\nklasy"]
["Rekomendacje do pracy z klasą w następnym roku szkolnym"]

{"sheet":"Wnioski II","index":8,"n_rows":3,"n_cols":1,"rows_kept":3,"cut":false,"hidden":false,"merged":[]}
["WNIOSKI:\n\nWspółpraca z rodzicami\nMocne strony"]
["WNIOSKI:\n\nWspółpraca z rodzicami\nSłabe strony"]
["Rekomendacje do pracy\nz rodzicami\nw następnym roku szkolnym"]

{"sheet":"Nobel","index":9,"n_rows":20,"n_cols":7,"rows_kept":20,"cut":false,"hidden":true,"merged":[[0,0,0,3]]}
["Uczniowie nominowani i uhonorowani nagrodą MINI NOBLA\noraz nominowani do WROCŁAWSKIEGO NOBLA oraz STYPENDIUM PREZYDENTA\nKażdą nominację lub nagrodę wprowadzić do osobego rekordu"]
["Lp.","Nazwisko i imię","Dziedzina","Nominacja - Nagroda"]
[1,null,null,null,null,"nominacja","Język polski"]
[{"$f":"IF(B4<>\"\",A3+1,\"\")","v":""},null,null,null,null,"Mini Nobel","Matematyka"]
["",null,null,null,null,"Mini Nobel INTER SCHOLIS","Plastyka"]
[""]
[""]
[""]
[""]
[""]
[""]
[""]
[""]
[""]
[""]
[""]
[""]
[""]
[""]
[""]

{"sheet":"LekcjeZrealizowane","index":10,"n_rows":14,"n_cols":6,"rows_kept":14,"cut":false,"hidden":true,"merged":[[0,0,0,1]]}
["Wypełniają wychowawcy klas III",null,null,"Liczba tygodni",17]
["Przedmiot","Liczba godzin zrealizowanych\ndo 17 stycznia 2020 r.",null,"liczba h/tyg.","Liczba h/semestr","%"]
["edukacja wczestnoszkolna",null,null,13,{"$f":"D3*$E$1","v":221},{"$f":"B3/E3","v":0}]
["edukacja muzyczna",null,null,1,{"$f":"D4*$E$1","v":17},{"$f":"B4/E4","v":0}]
["edukacja plastyczna",null,null,1,17,0]
["zajęcia komputerowe",null,null,1,17,0]
["wychowanie fizyczne",null,null,2,34,0]
["pływanie",null,null,1,17,0]
["język angielski",null,null,2,34,0]
["religia",null,null,2,34,0]
["język hiszpański gr. 1",null,null,2,{"$f":"D11*$E$1","v":34},{"$f":"B11/E11","v":0}]
["język hiszpański gr. 2",null,null,2,{"$f":"D12*$E$1","v":34},{"$f":"B12/E12","v":0}]
["warsztaty twórcze gr. 1",null,null,1,{"$f":"D13*$E$1","v":17},{"$f":"B13/E13","v":0}]
["warsztaty twórcze gr. 2",null,null,1,{"$f":"D14*$E$1","v":17},{"$f":"B14/E14","v":0}]